fUST/lending_fUST_20250603
["ID","MTS","AMOUNT","RATE_DAILY","PERIOD"]
[363954803,1748945449372,-151.0,0.00020547,2]
[363954805,1748945449382,-531.9,0.00020547,2]
[363954807,1748945449393,-440.0,0.00020547,2]
[363954809,1748945449403,-498.31,0.00020547,2]
[363954811,1748945449412,-440.0,0.00020547,2]
[363954813,1748945449420,-2838.58,0.00020547,2]
[363954815,1748945449432,-440.0,0.00020547,2]
[363954817,1748945449440,-459.56,0.00020547,2]
[363954819,1748945449449,-3028.77,0.00020547,2]
[363954821,1748945449459,-2422.06,0.00020547,2]
[363954823,1748945449468,-1859.59,0.00020547,2]
[363954825,1748945449477,-1140.72,0.00020547,2]
[363954827,1748945449487,-440.0,0.00020547,2]
[363954829,1748945449496,-518.89,0.00020547,2]
[363954831,1748945449506,-512.59,0.00020547,2]
[363954833,1748945449516,-1769.54,0.00020547,2]
[363954835,1748945449525,-717.96,0.00020547,2]
[363954837,1748945449535,-764.36,0.00020547,2]
[363954839,1748945449544,-814.68,0.00020547,2]
[363954841,1748945449554,-1480.6,0.00020547,2]
[363954843,1748945449564,-793.63,0.00020547,2]
[363954845,1748945449573,-450.0,0.00020547,2]
[363954847,1748945449583,-1408.68,0.00020547,2]
[363954849,1748945449593,-470.69,0.00020547,2]
[363954851,1748945449602,-522.08,0.00020547,2]
[363954853,1748945449612,-1348.84,0.00020547,2]
[363954855,1748945449621,-564.73,0.00020547,2]
[363954857,1748945449631,-1259.13,0.00020547,2]
[363954860,1748945449641,-1238.06,0.00020547,2]
[363954861,1748945449650,-440.0,0.00020547,2]
[363954864,1748945449661,-589.57,0.00020547,2]
[363954866,1748945449670,-157.610266,0.00020548,2]
[363954868,1748945449680,-2556.52291398,0.00020555,3]
[363954870,1748945449689,-743.13,0.000206,2]
[363954872,1748945449699,-36845.60453093,0.000206,2]
[363954945,1748945450387,-450.0,0.00016438,2]
[363954947,1748945450396,-440.0,0.00016438,2]
[363954949,1748945450407,-440.0,0.00016438,2]
[363954951,1748945450417,-440.0,0.00016438,2]
[363954953,1748945450426,-440.0,0.00016438,2]
[363954955,1748945450436,-11985.28,0.00016712,2]
[363954957,1748945450446,-440.0,0.00016712,2]
[363954959,1748945450455,-440.0,0.00016712,2]
[363954961,1748945450465,-440.0,0.00016712,2]
[363954964,1748945450475,-440.0,0.00016712,2]
[363954965,1748945450484,-440.0,0.00016712,2]
[363954968,1748945450494,-11985.28,0.00016986,2]
[363954970,1748945450504,-493.10685768,0.00016986,2]
[363954972,1748945450513,-440.0,0.00016986,2]
[363954974,1748945450523,-440.0,0.00016986,2]
[363954976,1748945450532,-440.0,0.00016986,2]
[363954978,1748945450541,-440.0,0.00016986,2]
[363954980,1748945450552,-11985.28,0.0001726,2]
[363954982,1748945450562,-510.0,0.0001726,2]
[363954984,1748945450572,-239.41773825,0.0001726,2]
[363954986,1748945450581,-440.0,0.0001726,2]
[363954988,1748945450591,-11985.28,0.00017534,2]
[363954990,1748945450601,-440.0,0.00017534,2]
[363954992,1748945450610,-11985.28,0.00017808,2]
[363954994,1748945450619,-440.0,0.00017808,2]
[363954996,1748945450628,-11985.28,0.00018082,2]
[363954998,1748945450638,-370.0,0.00018082,2]
[363955000,1748945450647,-11985.28,0.00018356,2]
[363955002,1748945450659,-11985.28,0.0001863,2]
[363955004,1748945450671,-11985.28,0.00018904,2]
[363955006,1748945450680,-11985.28,0.00019178,2]
[363955008,1748945450690,-11985.28,0.00019452,2]
[363955010,1748945450700,-11985.28,0.00019726,2]
[363955013,1748945450710,-11985.28,0.0002,2]
[363955015,1748945450719,-11985.28,0.00020273,2]
[363955017,1748945450728,-11985.28,0.00020547,2]
[363955019,1748945450738,-15245.68546907,0.000206,2]
[363955021,1748945450747,-151.0,0.00020602,16]
[363955023,1748945450756,-2556.52291398,0.00020797,4]
[363955025,1748945450766,-440.0,0.00020821,2]
[363955027,1748945450775,-449.52,0.00020821,2]
[363955029,1748945450785,-440.0,0.00020821,2]
[363955031,1748945450795,-896.47,0.00020821,2]
[363955033,1748945450804,-517.32,0.00020821,2]
[363955035,1748945450814,-440.0,0.00020821,2]
[363955037,1748945450823,-452.66,0.00020821,2]
[363955039,1748945450833,-440.0,0.00020821,2]
[363955041,1748945450842,-442.41,0.00020821,2]
[363955055,1748945450852,-1275.44,0.00020821,2]
[363955058,1748945450986,-560.01,0.00020821,2]
[363955060,1748945450997,-1680.21,0.00020821,2]
[363955062,1748945451007,-440.0,0.00020821,2]
[363955064,1748945451016,-531.9,0.00020821,2]
[363955066,1748945451025,-440.0,0.00020821,2]
[363955068,1748945451034,-498.31,0.00020821,2]
[363955070,1748945451044,-440.0,0.00020821,2]
[363955072,1748945451053,-2838.58,0.00020821,2]
[363955074,1748945451062,-440.0,0.00020821,2]
[363955076,1748945451071,-459.56,0.00020821,2]
[363955078,1748945451080,-3028.77,0.00020821,2]
[363955080,1748945451089,-2422.06,0.00020821,2]
[363955082,1748945451098,-1859.59,0.00020821,2]
[363955084,1748945451107,-1140.72,0.00020821,2]
[363955086,1748945451116,-340.0,0.00020821,2]
[363955088,1748945451125,-518.89,0.00020821,2]
[363955090,1748945451136,-512.59,0.00020821,2]
[363955092,1748945451145,-1769.54,0.00020821,2]
[363955095,1748945451155,-764.36,0.00020821,2]
[363955097,1748945451164,-814.68,0.00020821,2]
[363955099,1748945451173,-1480.6,0.00020821,2]
[363955101,1748945451182,-793.63,0.00020821,2]
[363955102,1748945451191,-450.0,0.00020821,2]
[363955105,1748945451200,-1408.68,0.00020821,2]
[363955107,1748945451209,-470.69,0.00020821,2]
[363955108,1748945451219,-522.08,0.00020821,2]
[363955111,1748945451228,-1348.84,0.00020821,2]
[363955113,1748945451237,-564.73,0.00020821,2]
[363955115,1748945451246,-1259.13,0.00020821,2]
[363955117,1748945451255,-1238.06,0.00020821,2]
[363955119,1748945451264,-440.0,0.00020821,2]
[363955121,1748945451273,-589.57,0.00020821,2]
[363955123,1748945451282,-11985.28,0.00020821,2]
[363955125,1748945451291,-151.0,0.00020867,17]
[363955127,1748945451300,-500.0,0.00020871,2]
[363955129,1748945451309,-500.0,0.00020871,2]
[363955131,1748945451318,-500.0,0.00020871,2]
[363955133,1748945451328,-1200.0,0.00020876,2]
[363955135,1748945451338,-500.0,0.00020907,2]
[363955137,1748945451348,-500.91748917,0.00020907,2]
[363955139,1748945451357,-200.8465109,0.00020907,2]
[363955141,1748945451366,-500.0,0.00020907,2]
[363955143,1748945451375,-500.24804547,0.00020939,2]
[363955145,1748945451384,-1000.0,0.00020939,2]
[363955147,1748945451393,-5156.28416079,0.00020995,2]
[363955149,1748945451403,-2556.52291398,0.00021038,4]
[363955151,1748945451414,-500.84808081,0.00021041,2]
[363955153,1748945451423,-440.0,0.00021095,2]
[363955155,1748945451432,-449.52,0.00021095,2]
[363955157,1748945451442,-440.0,0.00021095,2]
[363955159,1748945451450,-896.47,0.00021095,2]
[363955161,1748945451460,-517.32,0.00021095,2]
[363955163,1748945451469,-440.0,0.00021095,2]
[363955165,1748945451479,-452.66,0.00021095,2]
[363955167,1748945451488,-440.0,0.00021095,2]
[363955169,1748945451498,-442.41,0.00021095,2]
[363955171,1748945451507,-1275.44,0.00021095,2]
[363955173,1748945451516,-560.01,0.00021095,2]
[363955175,1748945451525,-1680.21,0.00021095,2]
[363955177,1748945451535,-253.79,0.00021095,2]
[363955179,1748945451544,-531.9,0.00021095,2]
[363955181,1748945451554,-401.29,0.00021095,2]
[363955183,1748945451563,-498.31,0.00021095,2]
[363955185,1748945451572,-320.0,0.00021095,2]
[363955187,1748945451582,-2838.58,0.00021095,2]
[363955189,1748945451591,-440.0,0.00021095,2]
[363955191,1748945451601,-459.56,0.00021095,2]
[363955192,1748945451610,-3028.77,0.00021095,2]
[363955195,1748945451620,-2422.06,0.00021095,2]
[363955196,1748945451630,-1859.59,0.00021095,2]
[363955198,1748945451639,-1140.72,0.00021095,2]
[363955200,1748945451649,-518.89,0.00021095,2]
[363955202,1748945451659,-512.59,0.00021095,2]
[363955204,1748945451668,-717.96,0.00021095,3]
[363955207,1748945451678,-1769.54,0.00021095,2]
[363955208,1748945451687,-764.36,0.00021095,2]
[363955210,1748945451697,-814.68,0.00021095,2]
[363955212,1748945451706,-1480.6,0.00021095,2]
[363955214,1748945451716,-793.63,0.00021095,2]
[363955216,1748945451726,-450.0,0.00021095,2]
[363955218,1748945451735,-1408.68,0.00021095,2]
[363955220,1748945451745,-470.69,0.00021095,2]
[363955222,1748945451755,-522.08,0.00021095,2]
[363955224,1748945451764,-1348.84,0.00021095,2]
[363955226,1748945451774,-564.73,0.00021095,2]
[363955228,1748945451784,-1259.13,0.00021095,2]
[363955230,1748945451793,-1238.06,0.00021095,2]
[363955232,1748945451803,-440.0,0.00021095,2]
[363955234,1748945451812,-589.57,0.00021095,2]
[363955236,1748945451821,-11985.28,0.00021095,2]
[363955238,1748945451831,-216.0,0.00021101,2]
[363955240,1748945451840,-151.0,0.00021132,19]
[363955242,1748945451849,-151.0,0.0002121,2]
[363955244,1748945451859,-2556.52291398,0.00021279,5]
[363955246,1748945451869,-3000.0,0.000213,2]
[363955248,1748945451878,-200.0,0.000213,20]
[363955250,1748945451887,-200.0,0.000213,20]
[363955252,1748945451896,-200.0,0.000213,20]
[363955254,1748945451906,-200.0,0.000213,20]
[363955256,1748945451918,-200.0,0.000213,20]
[363955258,1748945451927,-200.0,0.000213,20]
[363955260,1748945451936,-200.0,0.000213,20]
[363955262,1748945451946,-166.0,0.000213,20]
[363955264,1748945451956,-250.0,0.000213,30]
[363955266,1748945451965,-3000.0,0.0002131,2]
[363955268,1748945451974,-3000.0,0.0002132,2]
[363955270,1748945451984,-3000.0,0.0002133,2]
[363955272,1748945451994,-5156.28416071,0.00021338,2]
[363955274,1748945452004,-3000.0,0.0002134,2]
[363955276,1748945452014,-3000.0,0.0002135,2]
[363955278,1748945452023,-3000.0,0.0002136,2]
[363955280,1748945452033,-440.0,0.00021369,2]
[363955282,1748945452042,-449.52,0.00021369,2]
[363955284,1748945452052,-440.0,0.00021369,2]
[363955286,1748945452062,-896.47,0.00021369,2]
[363955288,1748945452071,-517.32,0.00021369,2]
[363955290,1748945452081,-298.28,0.00021369,2]
[363955292,1748945452091,-452.66,0.00021369,2]
[363955294,1748945452100,-440.0,0.00021369,2]
[363955296,1748945452110,-442.41,0.00021369,2]
[363955298,1748945452119,-1275.44,0.00021369,2]
[363955300,1748945452128,-560.01,0.00021369,2]
[363955302,1748945452138,-1680.21,0.00021369,2]
[363955304,1748945452148,-531.9,0.00021369,2]
[363955305,1748945452158,-498.31,0.00021369,2]
[363955306,1748945452167,-2838.58,0.00021369,2]
[363955307,1748945452177,-440.0,0.00021369,2]
[363955308,1748945452186,-459.56,0.00021369,2]
[363955309,1748945452195,-3028.77,0.00021369,2]
[363955310,1748945452204,-2422.06,0.00021369,2]
[363955311,1748945452213,-1859.59,0.00021369,2]
[363955312,1748945452222,-1140.72,0.00021369,2]
[363955313,1748945452232,-518.89,0.00021369,2]
[363955314,1748945452242,-512.59,0.00021369,2]
[363955315,1748945452251,-1769.54,0.00021369,2]
[363955316,1748945452261,-764.36,0.00021369,2]
[363955317,1748945452271,-814.68,0.00021369,2]
[363955318,1748945452280,-1480.6,0.00021369,2]
[363955319,1748945452289,-793.63,0.00021369,2]
[363955320,1748945452298,-450.0,0.00021369,2]
[363955321,1748945452308,-1408.68,0.00021369,2]
[363955322,1748945452318,-470.69,0.00021369,2]
[363955323,1748945452328,-522.08,0.00021369,2]
[363955324,1748945452337,-1348.84,0.00021369,2]
[363955325,1748945452346,-564.73,0.00021369,2]
[363955326,1748945452356,-1259.13,0.00021369,2]
[363955327,1748945452366,-1238.06,0.00021369,2]
[363955328,1748945452375,-440.0,0.00021369,2]
[363955329,1748945452384,-589.57,0.00021369,2]
[363955330,1748945452394,-11985.28,0.00021369,2]
[363955331,1748945452404,-3000.0,0.0002137,2]
[363955332,1748945452413,-3000.0,0.0002138,2]
[363955333,1748945452423,-3000.0,0.0002139,2]
[363955334,1748945452433,-211.39485195,0.00021397,20]
[363955335,1748945452443,-3000.0,0.000214,2]
[363955336,1748945452452,-3000.0,0.0002141,2]
[363955337,1748945452462,-501.27760558,0.00021419,2]
[363955338,1748945452471,-3000.0,0.0002142,2]
[363955339,1748945452481,-1800.0,0.00021423,2]
[363955340,1748945452491,-3000.0,0.0002143,2]
[363955341,1748945452501,-3000.0,0.0002144,2]
[363955342,1748945452510,-3000.0,0.0002145,2]
[363955343,1748945452521,-500.0,0.00021455,2]
[363955344,1748945452531,-500.0,0.00021455,2]
[363955345,1748945452540,-3000.0,0.0002146,2]
[363955346,1748945452550,-3000.0,0.0002147,2]
[363955347,1748945452559,-3000.0,0.0002148,2]
[363955348,1748945452568,-151.0,0.0002148,2]
[363955349,1748945452578,-151.0,0.0002148,2]
[363955350,1748945452588,-151.0,0.0002148,2]
[363955351,1748945452598,-1500.0,0.00021487,2]
[363955352,1748945452608,-3000.0,0.0002149,2]
[363955353,1748945452617,-162967.24567,0.00021499,2]
[363955354,1748945452629,-3000.0,0.000215,2]
[363955355,1748945452639,-3000.0,0.0002151,2]
[363955356,1748945452648,-3000.0,0.0002152,2]
[363955357,1748945452659,-2556.52291398,0.00021521,5]
[363955358,1748945452669,-3000.0,0.0002153,2]
[363955359,1748945452679,-3000.0,0.0002154,2]
[363955360,1748945452689,-3000.0,0.0002155,2]
[363955361,1748945452698,-151.0,0.0002155,2]
[363955362,1748945452708,-151.0,0.0002155,2]
[363955363,1748945452718,-151.0,0.0002155,2]
[363955364,1748945452728,-5369.318302,0.0002156,2]
[363955365,1748945452738,-440.0,0.00021643,2]
[363955366,1748945452748,-449.52,0.00021643,2]
[363955367,1748945452758,-440.0,0.00021643,2]
[363955368,1748945452768,-896.47,0.00021643,2]
[363955369,1748945452778,-517.32,0.00021643,2]
[363955370,1748945452788,-452.66,0.00021643,2]
[363955371,1748945452797,-440.0,0.00021643,2]
[363955372,1748945452808,-442.41,0.00021643,2]
[363955373,1748945452818,-1275.44,0.00021643,2]
[363955374,1748945452828,-560.01,0.00021643,2]
[363955375,1748945452838,-1680.21,0.00021643,2]
[363955376,1748945452848,-531.9,0.00021643,2]
[363955377,1748945452857,-498.31,0.00021643,2]
[363955378,1748945452867,-2838.58,0.00021643,2]
[363955379,1748945452877,-440.0,0.00021643,2]
[363955380,1748945452887,-459.56,0.00021643,2]
[363955381,1748945452897,-3028.77,0.00021643,2]
[363955382,1748945452907,-2422.06,0.00021643,2]
[363955383,1748945452919,-1859.59,0.00021643,2]
[363955384,1748945452929,-1140.72,0.00021643,2]
[363955385,1748945452938,-518.89,0.00021643,2]
[363955386,1748945452948,-512.59,0.00021643,2]
[363955387,1748945452959,-717.96,0.00021643,4]
[363955388,1748945452968,-1769.54,0.00021643,2]
[363955390,1748945452977,-764.36,0.00021643,2]
[363955392,1748945452986,-814.68,0.00021643,2]
[363955394,1748945452996,-1480.6,0.00021643,2]
[363955396,1748945453006,-793.63,0.00021643,2]
[363955398,1748945453015,-450.0,0.00021643,2]
[363955400,1748945453024,-1408.68,0.00021643,2]
[363955402,1748945453033,-470.69,0.00021643,2]
[363955404,1748945453042,-522.08,0.00021643,2]
[363955406,1748945453051,-1348.84,0.00021643,2]
[363955408,1748945453060,-564.73,0.00021643,2]
[363955410,1748945453069,-1259.13,0.00021643,2]
[363955412,1748945453078,-1238.06,0.00021643,2]
[363955413,1748945453087,-240.0,0.00021643,2]
[363955415,1748945453097,-589.57,0.00021643,2]
[363955417,1748945453106,-11985.28,0.00021643,2]
[363955419,1748945453116,-5156.28416071,0.0002168,2]
[363955421,1748945453125,-3592.62,0.000217,2]
[363955423,1748945453134,-52091.29,0.000217,2]
[363955425,1748945453144,-215.0738,0.00021734,2]
[363955427,1748945453153,-2556.52291398,0.00021762,5]
[363955429,1748945453163,-743.13,0.000218,2]
[363955431,1748945453172,-151.0,0.000218,4]
[363955443,1748945453279,-440.0,0.00021917,2]
[363955445,1748945453288,-449.52,0.00021917,2]
[363955447,1748945453297,-440.0,0.00021917,2]
[363955449,1748945453307,-445.942567,0.00021917,2]
[363955451,1748945453316,-445.942567,0.00021917,2]
[363955453,1748945453325,-896.47,0.00021917,2]
[363955455,1748945453333,-517.32,0.00021917,2]
[363955457,1748945453343,-153.098058,0.00021917,2]
[363955459,1748945453352,-153.098058,0.00021917,2]
[363955461,1748945453362,-452.66,0.00021917,2]
[363955462,1748945453371,-440.0,0.00021917,2]
[363955464,1748945453380,-500.0,0.00021917,2]
[363955466,1748945453390,-442.41,0.00021917,2]
[363955468,1748945453399,-1275.44,0.00021917,2]
[363955470,1748945453410,-560.01,0.00021917,2]
[363955472,1748945453420,-1680.21,0.00021917,2]
[363955474,1748945453430,-531.9,0.00021917,2]
[363955476,1748945453439,-498.31,0.00021917,2]
[363955478,1748945453448,-2838.58,0.00021917,2]
[363955480,1748945453459,-440.0,0.00021917,2]
[363955482,1748945453468,-459.56,0.00021917,2]
[363955484,1748945453478,-3028.77,0.00021917,2]
[363955486,1748945453488,-2422.06,0.00021917,2]
[363955488,1748945453499,-1859.59,0.00021917,2]
[363955490,1748945453509,-1140.72,0.00021917,2]
[363955492,1748945453519,-518.89,0.00021917,2]
[363955494,1748945453529,-512.59,0.00021917,2]
[363955496,1748945453539,-1769.54,0.00021917,2]
[363955498,1748945453548,-764.36,0.00021917,2]
[363955500,1748945453558,-814.68,0.00021917,2]
[363955502,1748945453567,-1480.6,0.00021917,2]
[363955503,1748945453577,-793.63,0.00021917,2]
[363955505,1748945453587,-450.0,0.00021917,2]
[363955507,1748945453598,-1408.68,0.00021917,2]
[363955509,1748945453608,-470.69,0.00021917,2]
[363955511,1748945453618,-522.08,0.00021917,2]
[363955513,1748945453629,-1348.84,0.00021917,2]
[363955515,1748945453638,-564.73,0.00021917,2]
[363955517,1748945453648,-1259.13,0.00021917,2]
[363955519,1748945453660,-1238.06,0.00021917,2]
[363955521,1748945453670,-589.57,0.00021917,2]
[363955522,1748945453679,-11985.28,0.00021917,2]
[363955524,1748945453690,-247.641833,0.00021918,2]
[363955526,1748945453700,-247.641833,0.00021918,2]
[363955528,1748945453710,-247.641833,0.00021918,2]
[363955530,1748945453719,-247.641833,0.00021918,2]
[363955532,1748945453731,-2400.0,0.00021971,2]
[363955533,1748945453740,-151.0,0.00022,7]
[363955535,1748945453750,-151.0,0.00022,7]
[363955536,1748945453759,-2387.96,0.00022,2]
[363955537,1748945453768,-94736.29,0.00022,7]
[363955538,1748945453777,-2629.699078,0.00022,7]
[363955539,1748945453786,-2629.699078,0.00022,7]
[363955540,1748945453796,-151.0,0.00022,7]
[363955541,1748945453805,-212.86879254,0.00022,7]
[363955542,1748945453814,-638.0,0.00022,2]
[363955543,1748945453823,-314.94761707,0.00022,7]
[363955544,1748945453833,-160.0,0.00022,7]
[363955545,1748945453842,-1027.608403,0.00022,7]
[363955546,1748945453851,-1027.608403,0.00022,7]
[363955547,1748945453860,-456.847962,0.00022,7]
[363955548,1748945453870,-456.847962,0.00022,7]
[363955549,1748945453879,-2556.52291398,0.00022003,6]
[363955550,1748945453888,-5156.28416071,0.00022023,2]
[363955551,1748945453897,-2000.0,0.00022035,2]
[363955552,1748945453907,-151.0,0.00022191,7]
[363955553,1748945453922,-151.0,0.00022191,7]
[363955554,1748945453932,-483.36431858,0.00022191,2]
[363955555,1748945453941,-449.52,0.00022191,2]
[363955556,1748945453950,-440.0,0.00022191,2]
[363955557,1748945453960,-896.47,0.00022191,2]
[363955558,1748945453970,-517.32,0.00022191,2]
[363955559,1748945453980,-452.66,0.00022191,2]
[363955560,1748945453989,-487.26392787,0.00022191,2]
[363955562,1748945453999,-442.41,0.00022191,2]
[363955564,1748945454010,-1275.44,0.00022191,2]
[363955566,1748945454020,-152.259077,0.00022191,7]
[363955568,1748945454029,-560.01,0.00022191,2]
[363955570,1748945454039,-1680.21,0.00022191,2]
[363955572,1748945454048,-151.0,0.00022191,7]
[363955574,1748945454058,-151.0,0.00022191,7]
[363955576,1748945454068,-531.9,0.00022191,2]
[363955578,1748945454077,-498.31,0.00022191,2]
[363955580,1748945454088,-2838.58,0.00022191,2]
[363955582,1748945454098,-440.0,0.00022191,2]
[363955584,1748945454108,-459.56,0.00022191,2]
[363955586,1748945454118,-3028.77,0.00022191,2]
[363955588,1748945454128,-2422.06,0.00022191,2]
[363955590,1748945454137,-1859.59,0.00022191,2]
[363955592,1748945454147,-1140.72,0.00022191,2]
[363955594,1748945454158,-518.89,0.00022191,2]
[363955596,1748945454168,-512.59,0.00022191,2]
[363955598,1748945454178,-717.96,0.00022191,5]
[363955600,1748945454187,-1769.54,0.00022191,2]
[363955602,1748945454197,-764.36,0.00022191,2]
[363955604,1748945454206,-814.68,0.00022191,2]
[363955606,1748945454216,-1480.6,0.00022191,2]
[363955608,1748945454226,-793.63,0.00022191,2]
[363955610,1748945454236,-450.0,0.00022191,2]
[363955612,1748945454245,-1408.68,0.00022191,2]
[363955614,1748945454255,-470.69,0.00022191,2]
[363955616,1748945454264,-522.08,0.00022191,2]
[363955617,1748945454274,-1348.84,0.00022191,2]
[363955619,1748945454284,-564.73,0.00022191,2]
[363955622,1748945454294,-1259.13,0.00022191,2]
[363955623,1748945454304,-1238.06,0.00022191,2]
[363955625,1748945454314,-589.57,0.00022191,2]
[363955628,1748945454325,-11985.28,0.00022191,2]
[363955630,1748945454335,-2556.52291398,0.00022245,6]
[363955632,1748945454344,-2200.0,0.00022247,2]
[363955634,1748945454354,-5156.28416071,0.00022366,2]
[363955635,1748945454363,-151.0,0.000224,9]
[363955638,1748945454373,-151.0,0.00022407,7]
[363955640,1748945454383,-151.0,0.00022407,7]
[363955641,1748945454393,-299.161862,0.00022407,7]
[363955643,1748945454403,-299.161862,0.00022407,7]
[363955646,1748945454414,-151.0,0.00022407,7]
[363955648,1748945454424,-151.0,0.00022407,7]
[363955649,1748945454434,-151.0,0.00022407,7]
[363955652,1748945454445,-151.0,0.00022407,7]
[363955654,1748945454454,-225.620091,0.00022407,7]
[363955656,1748945454464,-225.620091,0.00022407,7]
[363955658,1748945454474,-1095.348985,0.00022407,7]
[363955660,1748945454484,-1095.348985,0.00022407,7]
[363955662,1748945454496,-773.530678,0.00022407,7]
[363955663,1748945454506,-773.530678,0.00022407,7]
[363955665,1748945454515,-151.0,0.00022407,7]
[363955668,1748945454526,-151.0,0.00022407,7]
[363955670,1748945454535,-151.0,0.00022407,7]
[363955672,1748945454546,-449.52,0.00022465,2]
[363955674,1748945454556,-292.67521261,0.00022465,2]
[363955675,1748945454565,-896.47,0.00022465,2]
[363955677,1748945454575,-517.32,0.00022465,2]
[363955679,1748945454585,-452.66,0.00022465,2]
[363955681,1748945454594,-500.0,0.00022465,2]
[363955683,1748945454604,-151.0,0.00022465,7]
[363955685,1748945454613,-151.0,0.00022465,7]
[363955687,1748945454623,-1275.44,0.00022465,2]
[363955689,1748945454633,-442.41,0.00022465,2]
[363955691,1748945454642,-560.01,0.00022465,2]
[363955693,1748945454652,-1680.21,0.00022465,2]
[363955695,1748945454662,-531.9,0.00022465,2]
[363955697,1748945454672,-498.31,0.00022465,2]
[363955699,1748945454681,-2838.58,0.00022465,2]
[363955701,1748945454691,-440.0,0.00022465,2]
[363955703,1748945454701,-459.56,0.00022465,2]
[363955705,1748945454710,-3028.77,0.00022465,2]
[363955707,1748945454720,-2422.06,0.00022465,2]
[363955709,1748945454730,-1859.59,0.00022465,2]
[363955711,1748945454740,-1140.72,0.00022465,2]
[363955713,1748945454750,-518.89,0.00022465,2]
[363955715,1748945454760,-512.59,0.00022465,2]
[363955717,1748945454769,-1769.54,0.00022465,2]
[363955719,1748945454779,-764.36,0.00022465,2]
[363955721,1748945454788,-814.68,0.00022465,2]
[363955723,1748945454797,-1480.6,0.00022465,2]
[363955725,1748945454806,-793.63,0.00022465,2]
[363955727,1748945454815,-450.0,0.00022465,2]
[363955729,1748945454825,-1408.68,0.00022465,2]
[363955731,1748945454835,-470.69,0.00022465,2]
[363955733,1748945454844,-522.08,0.00022465,2]
[363955735,1748945454853,-151.0,0.00022465,7]
[363955737,1748945454863,-1348.84,0.00022465,2]
[363955739,1748945454872,-564.73,0.00022465,2]
[363955741,1748945454883,-1259.13,0.00022465,2]
[363955743,1748945454893,-1238.06,0.00022465,2]
[363955745,1748945454902,-589.57,0.00022465,2]
[363955747,1748945454913,-11985.28,0.00022465,2]
[363955749,1748945454926,-2556.52291398,0.00022486,7]
[363955751,1748945454935,-151.0,0.000225,7]
[363955753,1748945454945,-1582.6,0.000225,2]
[363955755,1748945454954,-1435.985759,0.0002254,3]
[363955757,1748945454965,-2500.0,0.00022583,2]
[363955759,1748945454974,-208.147301,0.00022603,2]
[363955761,1748945454983,-5156.28416071,0.00022708,2]
[363955763,1748945454993,-2556.52291398,0.00022728,7]
[363955765,1748945455004,-449.66936774,0.00022739,2]
[363955767,1748945455013,-896.66,0.00022739,2]
[363955769,1748945455022,-517.39752433,0.00022739,2]
[363955771,1748945455032,-452.87,0.00022739,2]
[363955772,1748945455044,-1275.609632,0.00022739,2]
[363955774,1748945455054,-442.56085106,0.00022739,2]
[363955776,1748945455064,-560.03206632,0.00022739,2]
[363955778,1748945455073,-1680.2830001,0.00022739,2]
[363955780,1748945455083,-531.97639309,0.00022739,2]
[363955782,1748945455093,-498.32,0.00022739,2]